bitfinex/quotes_ETHUSD_20250908
["timestamp","ask_amount","ask_price","bid_price","bid_amount"]
[1757305637292,12.87097392,4307.5,4307.4,0.002]
[1757305638098,12.87097392,4307.5,4307.4,0.2958]
[1757305639002,12.87195957,4307.5,4307.4,0.2958]
[1757305639314,12.87195957,4307.5,4307.4,0.002]
[1757305639520,13.18565957,4307.5,4307.4,0.002]
[1757305640821,12.87195957,4307.5,4307.4,0.002]
[1757305641020,10.55042736,4307.5,4307.4,0.2958]
[1757305641519,12.33442736,4307.5,4307.4,0.2958]
[1757305641728,14.65595957,4307.5,4307.4,0.7488]
[1757305642034,14.65595957,4307.5,4307.4,0.2958]
[1757305644231,8.46042736,4307.5,4307.4,0.2958]
[1757305644394,8.87298827,4307.5,4307.4,1.1881]
[1757305644724,4.99898827,4307.5,4307.4,1.1881]
[1757305644925,8.87298827,4307.5,4307.4,1.1881]
[1757305645426,8.87298827,4307.5,4307.4,0.7317]
[1757305646131,8.87298827,4307.5,4307.4,0.2958]
[1757305646332,8.87298827,4307.5,4307.4,0.7317]
[1757305648309,11.19452048,4307.5,4307.4,0.2958]
[1757305648619,12.36130468,4307.5,4307.4,0.002]
[1757305649141,10.03977247,4307.5,4307.4,0.002]
[1757305649340,13.92620468,4307.5,4307.4,0.002]
[1757305649523,14.95398371,4307.5,4307.4,0.002]
[1757305652013,14.51468371,4307.5,4307.4,0.002]
[1757305652423,7.5462515,4307.5,4307.4,0.3071]
[1757305652649,8.20552545,4307.5,4307.4,0.3071]
[1757305652955,8.87298827,4307.5,4307.4,1.1994]
[1757305653536,8.87308523,4307.5,4307.4,1.1994]
[1757305653847,5.87308523,4307.5,4307.4,1.1994]
[1757305654148,1.99908523,4307.5,4307.4,1.1994]
[1757305654314,5.87308523,4307.5,4307.4,3.5209861]
[1757305654846,5.87308523,4307.5,4307.4,1.1994]
[1757305655618,6.57308523,4307.5,4307.4,1.1994]
[1757305655815,6.57308523,4307.5,4307.4,0.743]
[1757305656014,6.57308523,4307.5,4307.4,0.3071]
[1757305658850,6.57308523,4307.5,4307.4,0.743]
[1757305659819,7.77273108,4307.5,4307.4,0.002]
[1757305660019,11.78846329,4307.5,4307.4,0.002]
[1757305661060,11.34916329,4307.5,4307.4,0.002]
[1757305662060,11.44216481,4307.5,4307.4,0.002]
[1757305665072,10.66926481,4307.5,4307.4,0.002]
[1757305665576,8.3477326,4307.5,4307.4,0.002]
[1757305666125,10.66926481,4307.5,4307.4,0.002]
[1757305666326,10.97926481,4307.5,4307.4,0.002]
[1757305666759,10.66926481,4307.5,4307.4,0.002]
[1757305667581,10.88626329,4307.5,4307.4,0.002]
[1757305668165,11.34916329,4307.5,4307.4,0.002]
[1757305668360,11.78846329,4307.5,4307.4,0.002]
[1757305668862,15.28442342,4307.5,4307.4,0.002]
[1757305669061,15.41356508,4307.5,4307.4,0.002]
[1757305670570,15.50658087,4307.5,4307.4,0.002]
[1757305671671,15.50558087,4307.5,4307.4,0.002]
[1757305671864,15.06628087,4307.5,4307.4,0.002]
[1757305672870,15.50558087,4307.5,4307.4,0.002]
[1757305675890,15.50549668,4307.5,4307.4,0.002]
[1757305678764,21.01402514,4307.5,4307.4,0.002]
[1757305678962,20.66988244,4307.5,4307.4,0.002]
[1757305679191,21.013817,4307.5,4307.4,0.002]
[1757305680456,15.50528854,4307.5,4307.4,0.002]
[1757305681183,22.82169162,4307.5,4307.4,0.002]
[1757305684998,22.38239162,4307.5,4307.4,0.002]
[1757305685159,22.38233491,4307.5,4307.4,0.002]
[1757305685556,21.60943491,4307.5,4307.4,0.3179]
[1757305685762,19.70581908,4307.5,4307.4,0.774]
[1757305686082,19.70581908,4307.5,4307.4,0.768]
[1757305686281,20.49781908,4307.5,4307.4,0.768]
[1757305686507,19.70581908,4307.5,4307.4,0.768]
[1757305686659,19.70581908,4307.5,4307.4,1.2646]
[1757305686864,20.49781908,4307.5,4307.4,1.2646]
[1757305687283,22.76572705,4307.5,4307.4,0.768]
[1757305687568,22.76572705,4307.5,4307.4,0.3159]
[1757305688282,22.89475114,4307.5,4307.4,0.3159]
[1757305688597,22.76572705,4307.5,4307.4,0.772]
[1757305688910,18.17640353,4307.5,4307.4,1.2686]
[1757305689079,17.6804434,4307.5,4307.4,1.2686]
[1757305689576,13.8884434,4307.5,4307.4,1.2686]
[1757305690165,10.0154434,4307.5,4307.4,1.2686]
[1757305690376,13.8884434,4307.5,4307.4,1.2686]
[1757305691410,2.9554434,4307.5,4307.4,1.2686]
[1757305691586,6.61340308,4307.5,4307.4,3.5901861]
[1757305692306,2.74040308,4307.5,4307.4,4.18397221]
[1757305692609,6.61340308,4307.5,4307.4,4.18397221]
[1757305693876,4.82940308,4307.5,4307.4,4.18397221]
[1757305694679,0.95640308,4307.5,4307.4,4.18397221]
[1757305694906,0.001,4307.6,4307.5,2.32153221]
[1757305695074,0.001,4307.6,4307.5,4.68371207]
[1757305695279,0.001,4307.6,4307.5,4.97639675]
[1757305695575,0.001,4307.6,4307.5,7.97639675]
[1757305696574,0.001,4307.6,4307.5,8.06935115]
[1757305700223,0.001,4307.6,4307.5,11.94135115]
[1757305706025,0.001,4307.6,4307.5,11.94335115]
[1757305709057,0.001,4307.6,4307.5,8.07135115]
[1757305709196,0.001,4307.6,4307.5,11.94235115]
[1757305716567,0.001,4307.6,4307.5,11.48625115]
[1757305716748,0.001,4307.6,4307.5,11.95655115]
[1757305719325,0.001,4307.6,4307.5,10.98965115]
[1757305721850,0.001,4307.6,4307.5,6.80275115]
[1757305722053,0.001,4307.6,4307.5,10.67275115]
[1757305722422,0.001,4307.6,4307.5,6.80275115]
[1757305722647,0.7265,4307.6,4307.5,10.67275115]
[1757305722955,0.001,4307.6,4307.5,11.44875115]
[1757305723141,0.001,4307.6,4307.5,11.90375115]
[1757305726319,0.001,4307.6,4307.5,11.44875115]
[1757305727544,0.001,4307.6,4307.5,11.90375115]
[1757305729098,0.001,4307.6,4307.5,11.44875115]
[1757305730463,0.001,4307.6,4307.5,10.97845115]
[1757305734468,0.001,4307.6,4307.5,15.63593631]
[1757305740975,0.001,4307.8,4307.7,2.32142442]
[1757305741157,0.001,4307.8,4307.7,6.78421053]
[1757305741354,0.2959,4307.8,4307.7,6.90021053]
[1757305741574,0.001,4307.8,4307.7,6.90021053]
[1757305744286,0.001,4307.8,4307.7,6.99315803]
[1757305745979,0.716,4307.8,4307.7,6.99315803]
[1757305746598,1.1536,4307.8,4307.7,6.99315803]
[1757305747381,0.716,4307.8,4307.7,6.99315803]
[1757305747582,0.001,4307.8,4307.7,6.99315803]
[1757305747748,0.001,4307.8,4307.7,7.73685803]
[1757305748674,0.001,4307.8,4307.7,8.22865803]
[1757305748869,0.001,4308.3,4308.2,2.321155]
[1757305749181,0.001,4308.3,4308.2,9.7222705]
[1757305749350,0.001,4308.3,4308.2,11.0737705]
[1757305749553,0.001,4308.3,4308.2,11.16670331]
[1757305750389,0.001,4308.5,4308.4,2.32104725]
[1757305750585,0.24800667,4309.2,4308.7,2.32088564]
[1757305750787,0.24800667,4309.2,4309.1,9.97815536]
[1757305750990,0.24800667,4309.2,4309.1,13.84715536]
[1757305751192,0.50840667,4309.2,4309.1,13.84715536]
[1757305751686,0.50840667,4309.2,4309.1,14.35556203]
[1757305753089,0.96300667,4309.2,4309.1,14.35556203]
[1757305754575,0.50840667,4309.2,4309.1,14.35556203]
[1757305755291,0.50840667,4309.2,4309.1,15.03930928]
[1757305756060,0.96300667,4309.2,4309.1,15.03930928]
[1757305756260,1.40060667,4309.2,4309.1,14.35556203]
[1757305757994,0.96400667,4309.2,4309.1,14.35556203]
[1757305758897,0.50940667,4309.2,4309.1,14.35556203]
[1757305760583,0.50940667,4309.2,4309.1,14.47156203]
[1757305760783,0.50940667,4309.2,4309.1,5.94507687]
[1757305760987,1.40160667,4309.2,4309.1,14.47056203]
[1757305762866,1.40160667,4309.2,4309.1,10.60256203]
[1757305763597,0.96400667,4309.2,4309.1,10.60256203]
[1757305766509,0.96400667,4309.2,4309.1,5.94507687]
[1757305770410,0.50940667,4309.2,4309.1,5.94507687]
[1757305770913,1.58674734,4309.2,4308.0,2.32121224]
[1757305771114,0.933,4309.1,4308.9,2.32076734]
[1757305771623,1.1933,4309.0,4308.8,2.32082907]
[1757305771803,0.2621,4309.0,4308.9,2.32077792]
[1757305772493,1.1933,4309.0,4308.9,2.32077792]
[1757305772909,1.1933,4309.0,4308.8,2.32082465]
[1757305773112,0.2621,4309.0,4308.9,2.32077792]
[1757305773621,1.1933,4309.0,4308.9,2.32077792]
[1757305774159,1.1933,4309.0,4308.8,2.32083136]
[1757305774426,0.9312,4308.9,4308.5,2.32094378]
[1757305774591,0.4358,4308.9,4308.6,2.32093951]
[1757305774786,0.2639,4308.7,4308.6,2.32093951]
[1757305775317,0.7593,4308.7,4308.6,2.32093951]
[1757305775642,0.2639,4308.7,4308.6,2.32093951]
[1757305777336,0.24900667,4309.2,4309.1,2.3206702]
[1757305777491,0.97790667,4309.2,4309.1,2.3206702]
[1757305779627,0.97790667,4309.2,4309.0,2.32070657]
[1757305779826,0.4954,4309.1,4309.0,2.32070657]
[1757305780034,0.7312,4309.1,4309.0,2.32070657]
[1757305780394,0.2358,4309.1,4309.0,2.32070657]
[1757305782012,0.7312,4309.1,4309.0,2.32070657]
[1757305782533,0.2358,4309.1,4309.0,2.32070657]
[1757305790841,0.24900667,4309.2,4309.1,2.3206702]
[1757305791240,0.24900667,4309.2,4308.9,2.3207291]
[1757305791445,0.24900667,4309.2,4308.9,2.7772291]
[1757305792359,0.24900667,4309.2,4309.0,2.3207191]
[1757305793039,0.001,4309.1,4309.0,2.3207191]
[1757305797865,0.001,4309.1,4309.0,2.6194191]
[1757305798061,0.001,4309.1,4309.0,3.0489191]
[1757305798282,0.001,4309.1,4308.9,2.32076912]
[1757305798633,0.001,4309.1,4309.0,2.32072406]
[1757305800136,0.001,4309.1,4309.0,2.61942406]
[1757305800537,0.001,4309.1,4309.0,3.04892406]
[1757305801438,0.001,4309.1,4309.0,2.61942406]
[1757305801640,0.001,4309.1,4308.9,2.32077008]
[1757305802167,0.001,4309.1,4308.8,2.32282528]
[1757305802478,0.001,4309.1,4308.9,2.32077652]
[1757305802777,0.2672,4308.9,4308.8,0.002]
[1757305803011,0.7334,4308.9,4308.8,0.002]
[1757305803182,0.7334,4308.9,4308.8,2.32283178]
[1757305803354,0.116,4309.0,4308.9,2.32077792]
[1757305803882,0.001,4309.1,4309.0,2.32072406]
[1757305804084,0.001,4309.1,4309.0,3.20942406]
[1757305804304,0.001,4309.1,4309.0,3.50812406]
[1757305805670,0.001,4309.1,4309.0,2.61942406]
[1757305806079,0.001,4309.1,4309.0,3.04892406]
[1757305806264,0.2682,4309.1,4308.8,0.25100667]
[1757305806465,0.7344,4309.1,4308.8,2.5718312]
[1757305806666,0.2682,4309.1,4308.8,0.25100667]
[1757305806874,0.4662,4309.0,4308.8,0.002]
[1757305807208,0.897,4309.0,4308.8,0.002]
[1757305807393,0.7351,4308.9,4308.8,0.002]
[1757305807594,0.2689,4308.9,4308.8,0.002]
[1757305807794,0.21660847,4309.0,4308.8,0.3007]
[1757305808006,0.117,4309.1,4308.8,0.3007]
[1757305808184,0.117,4309.1,4308.9,2.75027792]
[1757305808389,0.117,4309.1,4309.0,0.2987]
[1757305808591,0.33359182,4309.1,4309.0,0.2987]
[1757305809073,0.33359182,4309.1,4309.0,2.61942406]
[1757305809284,0.33359182,4309.1,4309.0,3.04892406]
[1757305809490,0.33359182,4309.1,4309.0,3.85913647]
[1757305809491,0.001,4309.1,4309.0,3.85913647]
[1757305809711,0.001,4309.1,4309.0,3.97513647]
[1757305809890,0.001,4309.1,4309.0,4.672105]
[1757305812406,0.001,4309.1,4309.0,7.672105]
[1757305822442,0.001,4309.1,4309.0,6.484705]
[1757305822644,0.2986,4309.1,4309.0,9.99869259]
[1757305823152,0.001,4309.1,4309.0,10.74069259]
[1757305823353,0.001,4309.1,4309.0,11.19139259]
[1757305823584,0.001,4309.1,4309.0,10.74069259]
[1757305826575,0.2979,4309.1,4309.0,9.99869259]
[1757305826745,0.2979,4309.1,4309.0,11.45347284]
[1757305827288,0.001,4309.1,4309.0,11.74707284]
[1757305827474,0.001,4309.1,4309.0,11.45247284]
[1757305827674,0.2979,4309.1,4309.0,11.45247284]
[1757305828193,0.7585,4309.1,4309.0,11.45247284]
[1757305828404,0.2979,4309.1,4309.0,11.45247284]
[1757305831001,0.7585,4309.1,4309.0,11.45247284]
[1757305831157,0.7585,4309.1,4309.0,9.99769259]
[1757305831357,0.2979,4309.1,4309.0,9.99769259]
[1757305831559,0.001,4309.1,4309.0,9.99769259]
[1757305832965,0.001,4309.1,4309.0,10.29229259]
[1757305833579,0.001,4309.1,4309.0,9.99769259]
[1757305835014,0.001,4309.1,4309.0,10.29229259]
[1757305835223,0.001,4309.1,4309.0,10.73559259]
[1757305835505,0.001,4309.1,4309.0,6.42829259]
[1757305835710,0.001,4309.1,4309.0,10.29229259]
[1757305836168,0.001,4309.1,4309.0,9.99769259]
[1757305836373,0.001,4309.1,4309.0,10.29229259]
[1757305836605,0.001,4309.1,4309.0,12.67117284]
[1757305837407,0.001,4309.1,4309.0,11.48257284]
[1757305839014,0.001,4309.1,4309.0,12.22047284]
[1757305839877,0.001,4309.1,4309.0,11.77717284]
[1757305840201,0.001,4309.1,4309.0,9.99769259]
[1757305840512,0.2557,4309.1,4309.0,9.99769259]
[1757305841644,1.1594,4309.1,4309.0,3.13369259]
[1757305841834,1.1594,4309.1,4308.9,3.864]
[1757305842036,0.9037,4309.0,4308.9,9.18477792]
[1757305842337,1.1603,4309.0,4308.9,9.18477792]
[1757305842500,1.1603,4309.0,4308.9,2.32077792]
[1757305843936,1.1603,4309.0,4308.8,0.002]
[1757305844133,0.7172,4309.0,4308.8,0.002]
[1757305844336,0.2566,4309.0,4308.9,2.32077792]
[1757305844937,1.1585,4309.0,4308.9,2.32077792]
[1757305846010,0.7172,4309.0,4308.9,2.32077792]
[1757305846646,0.2566,4309.0,4308.9,2.32077792]
[1757305849439,0.001,4309.1,4309.0,2.32072406]
[1757305850012,0.2595,4309.1,4309.0,2.32072406]
[1757305851039,0.7201,4309.1,4309.0,2.32072406]
[1757305851749,0.001,4309.1,4309.0,2.32072406]
[1757305852039,0.2557,4309.1,4309.0,2.32072406]
[1757305852243,0.7163,4309.1,4309.0,2.32072406]
[1757305852744,0.2557,4309.1,4309.0,2.32072406]
[1757305853324,0.001,4309.1,4309.0,2.32072406]
[1757305854617,0.001,4309.1,4309.0,2.63252406]
[1757305856050,0.001,4309.1,4309.0,3.08562406]
[1757305856434,0.001,4309.1,4309.0,2.63252406]
[1757305856647,0.001,4309.1,4309.0,2.32072406]
[1757305858448,0.2463,4309.1,4309.0,2.32072406]
[1757305858650,0.001,4309.1,4309.0,2.32072406]
[1757305860250,0.001,4309.1,4309.0,7.94898848]
[1757305860546,0.001,4309.1,4309.0,12.72140411]
[1757305860750,0.3151,4309.1,4309.0,2.94638848]
[1757305860926,0.001,4309.1,4309.0,2.32072406]
[1757305861132,0.2463,4309.1,4309.0,2.32072406]
[1757305861344,0.7184,4309.1,4309.0,2.32072406]
[1757305861533,1.1709,4309.1,4309.0,2.32072406]
[1757305863521,0.7184,4309.1,4309.0,2.32072406]
[1757305863838,0.7184,4309.1,4308.8,0.002]
[1757305864155,0.9246,4309.0,4308.9,2.3207418]
[1757305864654,0.7195,4309.0,4308.9,2.3207418]
[1757305867267,0.7195,4309.0,4308.8,2.32283076]
[1757305867557,0.7195,4309.0,4308.9,2.32077792]
[1757305870158,0.7195,4309.0,4308.8,2.32281472]
[1757305870525,0.2474,4309.0,4308.9,2.32077792]
[1757305870725,0.001,4309.1,4309.0,2.32072406]
[1757305870928,0.3336771,4309.1,4308.9,2.32076853]
[1757305871129,0.8344,4309.1,4308.9,2.32076853]
[1757305871647,0.8344,4309.1,4309.0,2.32072406]
[1757305871929,0.57901995,4309.1,4309.0,2.32072406]
[1757305872557,0.3623,4309.1,4308.8,0.002]
[1757305873462,0.3623,4309.1,4308.9,2.32073137]
[1757305874430,0.8344,4309.1,4308.8,2.32282154]
[1757305875041,0.8344,4309.1,4308.9,2.32077564]
[1757305875430,0.8344,4309.1,4308.8,2.32280985]
[1757305875830,0.7,4308.9,4308.8,2.32280985]
[1757305876561,0.5891,4309.1,4309.0,2.32072406]
[1757305876869,0.33353958,4309.1,4309.0,2.32072406]
[1757305877563,0.117,4309.1,4309.0,2.32072406]
[1757305879064,0.001,4309.1,4309.0,8.23173969]
[1757305879239,0.001,4309.1,4309.0,9.10640975]
[1757305882454,0.001,4309.1,4309.0,12.10640975]
[1757305882781,0.001,4309.1,4309.0,11.31299412]
[1757305885700,0.001,4309.6,4309.5,2.3204548]
[1757305885845,0.001,4309.6,4309.5,13.83987043]
[1757305886047,0.001,4309.6,4309.5,15.22667043]
[1757305886350,0.001,4309.6,4309.5,15.3195728]
[1757305888586,0.001,4309.6,4309.5,12.999118]
[1757305888750,0.001,4309.6,4309.5,13.50878139]
[1757305888950,0.001,4309.6,4309.5,15.82923619]
[1757305890901,0.001,4309.6,4309.5,10.69543619]
[1757305891047,0.7361,4309.6,4309.5,0.20890237]
[1757305891246,0.7361,4309.6,4309.3,3.862]
[1757305891247,1.1744,4309.6,4309.3,3.862]
[1757305891482,0.4755,4309.5,4309.2,6.29859721]
[1757305891686,0.2614,4309.3,4309.2,6.29859721]
[1757305892082,0.2614,4309.3,4309.2,2.43659721]
[1757305892289,0.2614,4309.3,4309.2,6.29859721]
[1757305892692,0.2614,4309.3,4309.2,2.43659721]
[1757305892989,0.2614,4309.3,4309.2,6.29859721]
[1757305896855,0.001,4309.6,4309.5,2.3204548]
[1757305897391,0.001,4309.6,4309.5,2.7480548]
[1757305897695,0.001,4309.6,4309.5,3.2114548]
[1757305897876,0.001,4309.6,4309.5,7.0734548]
[1757305898491,0.7361,4309.6,4309.5,6.2984548]
[1757305898800,1.1744,4309.6,4309.5,6.1824548]
[1757305899000,1.8744,4309.6,4309.5,2.3204548]
[1757305899357,1.4361,4309.6,4309.5,2.3204548]
[1757305902606,0.701,4309.6,4309.5,2.3204548]
[1757305902786,0.701,4309.6,4309.5,2.6320548]
[1757305903357,0.701,4309.6,4309.5,2.3204548]
[1757305905307,1.4361,4309.6,4309.5,2.3204548]
[1757305906094,1.4361,4309.6,4309.2,3.978]
[1757305906301,1.3989,4309.6,4309.5,2.3204548]
[1757305906963,1.8744,4309.6,4309.5,2.3204548]
[1757305907210,2.07614,4309.6,4309.2,0.116]
[1757305907363,0.116,4309.5,4308.8,0.118]
[1757305907560,0.9156,4309.4,4308.8,0.118]
[1757305907766,0.9156,4309.4,4309.3,2.3205625]
[1757305907964,1.368734,4309.4,4309.3,2.3205625]
[1757305908690,0.453134,4309.4,4309.3,2.3205625]
[1757305909004,0.928634,4309.4,4309.3,2.3205625]
[1757305910404,0.928634,4309.4,4309.2,2.32061265]
[1757305910602,0.4755,4309.3,4309.0,2.32067902]
[1757305910800,1.1085374,4309.3,4309.0,2.32067902]
[1757305911000,0.2614,4309.1,4308.8,0.118]
[1757305911298,0.4755,4309.0,4308.8,0.002]
[1757305911466,0.4755,4309.0,4308.9,2.32077146]
[1757305911673,0.116,4309.2,4309.1,2.3206702]
[1757305912118,0.8511,4309.2,4309.1,2.3206702]
[1757305912321,0.3756,4309.2,4309.1,2.3206702]
[1757305913104,0.8511,4309.2,4309.1,2.3206702]
[1757305914419,0.3756,4309.2,4309.1,2.3206702]
[1757305916721,0.116,4309.2,4309.1,2.6314702]
[1757305916918,0.701,4309.6,4309.5,2.3204548]
[1757305917118,0.001,4309.6,4309.5,3.0954548]
[1757305920596,0.3095,4309.6,4309.5,2.3204548]
[1757305921237,0.801,4309.6,4309.5,2.3204548]
[1757305921801,0.3095,4309.6,4309.5,2.3204548]
[1757305924615,0.001,4309.6,4309.5,2.3204548]
[1757305924817,0.001,4309.6,4309.5,3.5829548]
[1757305926337,0.001,4309.6,4309.5,3.0954548]
[1757305928748,0.001,4309.6,4309.5,4.17330581]
[1757305929043,0.001,4309.6,4309.5,4.31251035]
[1757305929242,0.001,4309.6,4309.5,4.28930581]
[1757305929413,0.001,4309.6,4309.5,8.15130581]
[1757305931009,0.001,4309.6,4309.5,8.15330581]
[1757305933654,0.001,4309.6,4309.5,7.20160581]
[1757305933948,0.001,4309.6,4309.5,6.6112548]
[1757305935654,0.001,4309.6,4309.5,2.7492548]
[1757305936771,0.3095,4309.6,4309.5,2.4384548]
[1757305937452,0.001,4309.6,4309.5,2.4384548]
[1757305937771,0.001,4309.6,4309.5,0.002]
[1757305937772,0.3095,4309.6,4309.5,0.002]
[1757305937971,1.1909,4309.6,4309.5,0.002]
[1757305938270,1.32429,4309.6,4309.5,0.002]
[1757305940375,1.32429,4309.6,4309.5,2.3224548]
[1757305940772,0.93439,4309.6,4309.5,2.3224548]
[1757305940971,0.44289,4309.6,4309.5,2.3224548]
[1757305941172,0.001,4309.6,4309.5,2.6332548]
[1757305941474,0.001,4309.6,4309.5,3.0974548]
[1757305943073,0.001,4309.6,4309.5,2.6332548]
[1757305943448,0.001,4309.6,4309.5,2.3224548]
[1757305944265,0.001,4309.6,4309.5,2.6236548]
[1757305944471,0.001,4309.6,4309.5,3.0600548]
[1757305945483,0.001,4309.6,4309.5,2.6236548]
[1757305945778,0.2725,4309.6,4309.5,2.3224548]
[1757305945985,0.7663,4309.6,4309.5,2.3224548]
[1757305946779,0.7663,4309.6,4309.5,0.002]
[1757305946780,1.1929,4309.6,4309.5,0.002]
[1757305947077,1.53128943,4309.6,4309.5,0.002]
[1757305950491,5.39249102,4309.6,4309.5,0.002]
[1757305953259,4.96589102,4309.6,4309.5,0.002]
[1757305954783,5.39249102,4309.6,4309.5,0.002]
[1757305955184,4.96589102,4309.6,4309.5,0.002]
[1757305955386,8.50489198,4309.6,4309.5,0.002]
[1757305955585,9.00432637,4309.6,4309.5,0.002]
[1757305957277,8.50489198,4309.6,4309.5,0.002]
[1757305959002,9.20489198,4309.6,4309.5,0.002]
[1757305961080,2.59689102,4309.6,4309.5,0.002]
[1757305961308,6.45789102,4309.6,4309.5,0.002]
[1757305961529,6.88449102,4309.6,4309.5,0.002]
[1757305961684,9.20489198,4309.6,4309.5,0.002]
[1757305962991,12.20489198,4309.6,4309.5,0.002]
[1757305963340,12.83300863,4309.6,4309.5,0.002]
[1757305964184,12.92597686,4309.6,4309.5,0.002]
[1757305965595,21.62453042,4309.6,4309.5,0.002]
[1757305965797,25.48553042,4309.6,4309.5,0.002]
[1757305965997,24.56513042,4309.6,4309.5,0.002]
[1757305966218,25.05893042,4309.6,4309.5,0.002]
[1757305966430,25.48553042,4309.6,4309.5,0.002]
[1757305972276,18.42553042,4309.6,4309.5,0.002]
[1757305972758,17.99893042,4309.6,4309.5,0.002]
[1757305974251,17.50513042,4309.6,4309.5,0.002]
[1757305976726,18.39053042,4309.6,4309.5,0.002]
[1757305977159,17.96393042,4309.6,4309.5,0.002]
[1757305977321,17.50513042,4309.6,4309.5,0.002]
[1757305978454,16.39371134,4309.6,4309.5,0.002]
[1757305978646,16.39371134,4309.6,4309.5,0.2911]
[1757305978862,16.70261134,4309.6,4309.5,0.002]
[1757305980357,16.39371134,4309.6,4309.5,0.2911]
[1757305980660,10.85010863,4309.6,4309.5,1.202]
[1757305980963,11.64210863,4309.6,4309.5,1.202]
[1757305982861,11.64210863,4309.6,4309.5,0.7441]
[1757305983966,11.95100863,4309.6,4309.5,0.002]
[1757305984174,11.64210863,4309.6,4309.5,0.002]
[1757305984530,11.64210863,4309.6,4309.5,0.2911]
[1757305984745,11.64210863,4309.6,4309.5,0.7441]
[1757305988563,7.78010863,4309.6,4309.5,0.7441]
[1757305988759,11.64110863,4309.6,4309.5,0.7441]
[1757305989151,1.54571767,4309.6,4309.5,1.202]
[1757305989357,0.91760102,4309.6,4309.5,1.202]
[1757305989567,0.91760102,4309.6,4309.5,3.5224548]
[1757305989568,4.77860102,4309.6,4309.5,3.5224548]
[1757305990255,4.562,4309.6,4309.5,3.5224548]
[1757305990787,0.701,4309.6,4309.5,3.5224548]
[1757305991012,4.562,4309.6,4309.5,4.11835516]
[1757305991154,0.701,4309.6,4309.5,4.23435516]
[1757306004578,0.701,4309.6,4309.5,4.11835516]
[1757306004778,0.001,4309.6,4309.5,4.23435516]
[1757306006019,0.001,4309.6,4309.5,4.32727048]
[1757306007116,1e-08,4309.9,4309.8,2.32029328]
[1757306007323,1e-08,4309.9,4309.8,14.91967875]
[1757306007611,1e-08,4309.9,4309.8,16.13887875]
[1757306009015,1e-08,4309.9,4309.8,17.92187875]
[1757306009214,1e-08,4309.9,4309.8,13.26324427]
[1757306009401,1e-08,4309.9,4309.8,17.92187875]
[1757306010317,7.184e-05,4310.0,4309.9,2.32023944]
[1757306010643,7.184e-05,4310.0,4309.9,3.66593874]
[1757306010852,7.184e-05,4310.0,4309.9,3.95883874]
[1757306011544,7.184e-05,4310.0,4309.9,4.0517273]
[1757306013359,7.184e-05,4310.0,4309.9,7.0517273]
[1757306016068,7.184e-05,4310.0,4309.9,10.9107273]
[1757306016354,7.184e-05,4310.0,4309.9,15.56936178]
[1757306021263,0.02,4310.9,4310.8,2.31975503]
[1757306021435,0.02,4310.9,4310.8,14.06836501]
[1757306021648,0.02,4310.9,4310.8,15.28756501]
[1757306022152,0.84204123,4311.7,4311.6,2.31932461]
[1757306022561,1.08694123,4311.7,4311.6,2.31932461]
[1757306022760,1.53984123,4311.7,4311.6,2.31932461]
[1757306026649,1.08694123,4311.7,4311.6,2.31932461]
[1757306028453,1.08694123,4311.7,4311.6,3.07362461]
[1757306028454,0.38444123,4311.7,4311.6,3.07362461]
[1757306028646,0.38444123,4311.7,4311.6,3.43754947]
[1757306029146,0.38444123,4311.7,4311.6,2.97614947]
[1757306029362,0.38444123,4311.7,4311.6,3.43754947]
[1757306029981,0.38444123,4311.7,4311.6,2.68324947]
[1757306030177,0.38444123,4311.7,4311.6,2.31932461]
[1757306031293,0.38444123,4311.7,4311.6,2.43452461]
[1757306031493,0.62934123,4311.7,4311.6,2.43452461]
[1757306031993,0.62934123,4311.7,4311.6,2.81896584]
[1757306033273,0.62934123,4311.7,4311.6,2.31932461]
[1757306033274,1.53984123,4311.7,4311.6,2.31932461]
[1757306035223,1.53984123,4311.7,4311.4,0.1152]
[1757306035524,1.69832535,4311.7,4311.6,2.31932461]
[1757306036393,1.53984123,4311.7,4311.6,2.31932461]
[1757306036590,0.38444123,4311.7,4311.6,2.31932461]
[1757306036803,0.38444123,4311.7,4311.6,7.70975909]
[1757306037002,0.38444123,4311.7,4311.6,7.82495909]
[1757306037203,0.38544123,4311.7,4311.6,8.30435909]
[1757306037501,0.38544123,4311.7,4311.6,9.75243664]
[1757306038031,0.62474123,4311.7,4311.6,3.88260216]
[1757306038330,0.38544123,4311.7,4311.6,2.43452461]
[1757306038625,0.38544123,4311.7,4311.6,2.72832461]
[1757306039631,0.38544123,4311.7,4311.6,2.43452461]
[1757306039809,0.38544123,4311.7,4311.6,2.72832461]
[1757306040235,0.38544123,4311.7,4311.6,3.16632461]
[1757306040440,0.001,4311.7,4311.6,3.16632461]
[1757306041041,0.001,4311.7,4311.6,2.72832461]
[1757306041244,0.001,4311.7,4311.6,3.16632461]
[1757306041944,0.001,4311.7,4311.6,4.57999871]
[1757306045050,0.001,4311.7,4311.6,4.10059871]
[1757306046566,0.001,4311.7,4311.6,3.36879871]
[1757306046718,0.001,4311.7,4311.6,3.66259871]
[1757306046922,0.001,4311.7,4311.6,4.57999871]
[1757306047438,0.001,4311.7,4311.6,3.36879871]
[1757306047632,0.2403,4311.7,4311.6,2.43452461]
[1757306048528,0.001,4311.7,4311.6,2.43452461]
[1757306049342,0.001,4311.7,4311.6,3.16632461]
[1757306050761,0.001,4311.7,4311.6,2.43452461]
[1757306051356,0.735,4311.7,4311.6,2.43452461]
[1757306051528,1.1935,4311.7,4311.6,2.31932461]
[1757306051730,0.735,4311.7,4311.6,2.31932461]
[1757306051970,1.1935,4311.7,4311.6,2.31932461]
[1757306052742,0.2403,4311.7,4311.6,2.31932461]
[1757306053265,0.735,4311.7,4311.6,2.31932461]
[1757306054638,1.1935,4311.7,4311.6,2.31932461]
[1757306054845,0.85885,4311.7,4311.3,0.1152]
[1757306055050,0.85885,4311.7,4310.4,1.65401031]